Workbook

Sheet Лист1
B5: Frequency | C5: Red | D5: Blue | E5: Bronze | F5: Silver | G5: Gold | H5: Platinum
B6: 1 | C6: 50 | D6: 100 | E6: 250 | F6: 500 | G6: 750 | H6: 1000
B7: 500 | C7: 0.65 | D7: 2.05 | E7: 5.3 | F7: 13.5 | G7: 34.35 | H7: 103.7
B8: 700 | C8: 0.39 | D8: 1.23 | E8: 3.18 | F8: 8.1 | G8: 20.61 | H8: 62.22
B9: 1300 | C9: 0.13 | D9: 0.41 | E9: 1.06 | F9: 2.7 | G9: 6.87 | H9: 20.74
B10: 1500 | C10: 0.12 | D10: 0.37 | E10: 0.95 | F10: 2.43 | G10: 6.18 | H10: 18.67
B11: 1800 | C11: 0.09 | D11: 0.29 | E11: 0.74 | F11: 1.89 | G11: 4.81 | H11: 14.52
B12: 2000 | C12: 0.08 | D12: 0.25 | E12: 0.64 | F12: 1.62 | G12: 4.12 | H12: 12.44
B13: 2199 | C13: 0.07 | D13: 0.21 | E13: 0.53 | F13: 1.35 | G13: 3.44 | H13: 10.37
B14: акция | C14: =1000/40000 -> 0.025 | D14: =1000/20000 -> 0.05 | E14: =1000/8000 -> 0.125 | F14: =1000/4000 -> 0.25 | G14: =1000/2000 -> 0.5 | H14: =1000/1000 -> 1
B15: ценность сунд | C15: =(C6*B6+C7*B7+C8*B8+C9*B9+C10*B10+C11*B11+C12*B12+C13*B13)/10000 -> 0.147293 | D15: =(D6*B6+D7*B7+D8*B8+D9*B9+D10*B10+D11*B11+D12*B12+D13*B13)/10000 -> 0.455779 | E15: =(E6*B6+E7*B7+E8*B8+E9*B9+E10*B10+E11*B11+E12*B12+E13*B13)/10000 -> 1.170647 | F15: =(F6*B6+F7*B7+F8*B8+F9*B9+F10*B10+F11*B11+F12*B12+F13*B13)/10000 -> 2.968565 | G15: =(G6*B6+G7*B7+G8*B8+G9*B9+G10*B10+G11*B11+G12*B12+G13*B13)/10000 -> 7.501556 | H15: =(H6*B6+H7*B7+H8*B8+H9*B9+H10*B10+H11*B11+H12*B12+H13*B13)/10000 -> 22.519063
C18: Red | D18: Blue | E18: Bronze | F18: Silver | G18: Gold | H18: Platinum
B19: рейк/сундук | C19: 2.8 | D19: 6.75 | E19: 23.5 | F19: 68 | G19: 180 | H19: хз
B20: рейкбек | C20: =C15/C19 -> 0.05260464286 | D20: =D15/(D19) -> 0.06752281481 | E20: =E15/E19 -> 0.04981476596 | F20: 0.04365536765 | G20: 0.04167531111 | H20: #VALUE!
B21: рейкбек+акция | C21: =(C14+C15)/C19 -> 0.06153321429 | D21: 0.07493022222 | E21: 0.05513391489 | F21: 0.04733183824 | G21: 0.04445308889 | H21: #VALUE!
C24: Red Chest | D24: Blue Chest | E24: Bronze Chest | F24: Silver Chest | G24: Gold Chest | H24: Platinum Chest
C25: 1 in 40,000 | D25: 1 in 20,000 | E25: 1 in 8,000 | F25: 1 in 4,000 | G25: 1 in 2,000 | H25: 1 in 1,000
C26: =1000/40000 -> 0.025 | D26: =1000/20000 -> 0.05 | E26: =1000/8000 -> 0.125 | F26: =1000/4000 -> 0.25 | G26: =1000/2000 -> 0.5 | H26: =1000/1000 -> 1
